Cogmind - Beta 14 @@@ ROGUE MODE // 2024.12.01 @ 16:36:51 Player: certified.possum Result: Destroyed by G-47 Trooper with Particle Gun Performance ------------- Evolutions (3) 1500 Regions Visited (6) 1200 Robots Destroyed (147) 735 Value Destroyed (4148) 4148 Prototype IDs (8) 160 Alien Tech Used (0) 0 Bonus (326) 326 TOTAL SCORE: 8069 Bonus ------- High Alert Combat Kills 159 Follower Combat Kills 348 Friendly Fire -181 Cogmind --------- Core Integrity 0/700 Matter 30/300 Energy 100/100 System Corruption 12% Temperature Cool (9) Movement Core (250) Ox4 Location -7/Factory Parts ------- > --- POWER (2) -------- (None) > --- PROPULSION (3) --- (None) > --- UTILITY (5) ------ Small Storage Unit Advanced Targeting Computer Advanced Targeting Computer > --- WEAPON (3) ------- Heavy Ion Cannon Mini Grenade Launcher > --- INVENTORY (8) ---- (None) Peak State ------------ > --- POWER ------------ Micro Nuclear Core Micro Fission Core > --- PROPULSION ------- Light Treads Light Treads Improved Cesium-ion Thruster > --- UTILITY ---------- Thermal Generator Improved Heat Sink Improved Targeting Computer Hardened Heavy Armor Plating > --- WEAPON ----------- Improved EM Pulse Cannon Cooled Particle Cannon Advanced Assault Cannon > --- INVENTORY -------- Light Treads Improved Light Armor Plating Advanced Beam Cannon Assault Cannon [Rating: 47] Favorites ----------- Power Light Nuclear Core Engine Light Deuterium Engine Power Core Light Nuclear Core Propulsion Light Treads Treads Light Treads Leg Carbon-fiber Leg Wheel Compact Wheel Hover Unit Gravmag System Flight Unit Improved Cesium-ion Thruster Utility Experimental Sensor Array Device Experimental Sensor Array Storage Small Storage Unit Processor Improved Targeting Computer Protection Light Armor Plating Weapon Advanced Beam Cannon Energy Gun Small Laser Energy Cannon Advanced Beam Cannon Ballistic Gun Gauss Rifle Ballistic Cannon Assault Cannon Launcher Precision Grenade Launcher Special Weapon Plasma Cutter Impact Weapon Hammer Build | -11 -10 -10 -9 -9 -8 -7 ------- Run | Yrd Mat Min Mat Sto Mat Fac Slots Evolved 6 | . . . 2 . 2 2 Power 1 | . . . . . 1 . Propulsion 1 | . . . 1 . . . Utility 3 | . . . 1 . 1 1 Weapon 1 | . . . . . . 1 Parts Attached 135 | 9 23 4 17 16 27 39 Power 24 | 2 5 . 1 1 7 8 Engine 9 | 2 2 . 1 . 2 2 Core 15 | . 3 . . 1 5 6 Reactor . | . . . . . . . Propulsion 31 | 4 6 1 7 4 5 4 Treads 22 | 2 2 1 7 4 4 2 Leg 1 | . . . . . 1 . Wheel 6 | 2 4 . . . . . Hover 1 | . . . . . . 1 Flight 1 | . . . . . . 1 Utility 40 | 1 4 3 5 4 11 12 Device 11 | . 1 1 2 . 3 4 Storage 6 | 1 1 . 1 . 2 1 Processor 5 | . 2 . . . 1 2 Hackware . | . . . . . . . Protection 18 | . . 2 2 4 5 5 Artifact . | . . . . . . . Weapon 40 | 2 8 . 4 7 4 15 Energy Gun 10 | 2 5 . 1 2 . . Energy Cannon 17 | . 2 . 3 3 2 7 Ballistic Gun 3 | . 1 . . . 1 1 Ballistic Cannon 5 | . . . . . 1 4 Launcher 3 | . . . . . . 3 Special Weapon 1 | . . . . 1 . . Impact Weapon 1 | . . . . 1 . . Slashing Weapon . | . . . . . . . Piercing Weapon . | . . . . . . . Special Melee Weapon . | . . . . . . . Unidentified Prototypes 8 | . 1 1 1 1 . 4 Parts Lost 39 | . 7 . 1 4 9 18 Power 9 | . 1 . . 1 2 5 Propulsion 10 | . 2 . . 1 3 4 Utility 9 | . 1 . . 1 3 4 Weapon 11 | . 3 . 1 1 1 5 Highest Loss Streak 10 | . 4 . 1 2 6 10 To Critical Strikes . | . . . . . . . Average Slot Usage (%) 95 | . 96 100 98 99 93 89 Engine 4 | . 7 . 4 4 4 7 Core 7 | . 6 14 6 6 9 7 Treads 26 | . 13 28 32 32 26 20 Wheel 1 | . 13 . . . . . Device 13 | . 4 5 18 22 11 10 Storage 1 | . 8 1 2 . . . Processor 6 | . 12 8 . . 8 8 Protection 9 | . . 12 11 10 14 9 Energy Gun 2 | . 22 . . . . . Energy Cannon 15 | . 2 28 21 20 9 12 Ballistic Cannon 2 | . . . . . 4 7 Peak Build Rating 47 | 6 15 21 30 29 31 47 Average Rating 25 | 5 8 16 27 27 29 37 On Entrance 17 | . 6 14 21 29 27 27 Naked Turns . | . . . . . . . Heaviest Build 66 | 13 23 23 21 22 28 66 Greatest Support 63 | 40 40 40 60 63 60 60 Greatest Overweight (x) 8 | . . . . . . 8 Average Overweight (x) . | . . . . . . . Largest Inventory Capacity 10 | 8 10 10 5 5 5 8 Average Capacity 5 | 7 6 5 5 5 5 5 Most Carried 8 | 5 8 5 5 5 5 5 Average Carried 3 | 4 5 4 3 3 3 3 Final Capacity 10 | 8 10 5 5 5 5 8 Final Carried 6 | 5 6 3 4 4 3 . Class Distribution -------------------- 55% | Mutant 16% | Scavenger-Mutant 12% | Scavenger-Gunner 7% | Scavenger-Tank 6% | Commander-Mutant Dominant Class ---------------- Mutant | -10/Materials Mutant | -10/Mines Mutant | -9/Materials Mutant | -9/Storage Scavenger-Mutant | -8/Materials Scavenger-Gunner | -7/Factory Resources | -11 -10 -10 -9 -9 -8 -7 ----------- Run | Yrd Mat Min Mat Sto Mat Fac Matter Collected 2112 | 290 288 10 234 176 509 605 Remotely . | . . . . . . . Salvage Created 5476 | 139 735 175 1013 1567 679 1168 Parts 384 | 15 52 12 66 100 48 91 Haulers Intercepted 2 | . 1 . . 1 . . Recyclers Shooed 5 | . 1 . 1 1 2 . Parts Field Recycled . | . . . . . . . Retrieved Matter . | . . . . . . . Parts Self-Destructed . | . . . . . . . Prevented . | . . . . . . . Kills | -11 -10 -10 -9 -9 -8 -7 ------- Run | Yrd Mat Min Mat Sto Mat Fac Combat Hostiles Destroyed 89 | . 12 5 15 22 15 20 Guns 20 | . 11 . . . 9 . Cannons 60 | . . 5 14 22 5 14 AOE 7 | . 1 . . . . 6 Classes Destroyed 13 | 3 4 2 1 1 1 1 Worker 10 | 2 2 . 1 2 2 1 Builder 9 | . 2 . . . 1 6 Tunneler 7 | 2 2 . 2 . 1 . Hauler 2 | . 1 . . 1 . . Recycler 14 | 1 . . 2 5 . 6 Operator 1 | . . . 1 . . . Watcher 14 | . 3 . 3 2 2 4 Swarmer 14 | . . 3 1 . 4 6 Grunt 44 | . 12 . 8 9 9 6 Brawler 1 | . . . . 1 . . Sentry 23 | . . 2 6 12 2 1 Hunter 1 | . . . . . 1 . Programmer 7 | . . . . . . 7 Best Kill Streak 12 | 2 3 3 5 6 5 12 Combat Bots Only 5 | . 3 3 4 3 5 4 Max Kills in Single Turn 4 | 1 2 1 2 2 2 4 Gunslinging . | . . . . . . . Exploded 2 | . 1 . . . . 2 Melee . | . . . . . . . Uniques/NPCs Destroyed . | . . . . . . . Combat | -11 -10 -10 -9 -9 -8 -7 -------- Run | Yrd Mat Min Mat Sto Mat Fac Hostile Shots Fired 638 | . 91 17 68 88 122 252 Missed 181 | . 20 4 21 17 37 82 Damage Taken 6790 | . 949 137 723 985 1271 2725 Core 1446 | . 212 32 178 144 168 712 Absorbed by Shields 47 | . . . 47 . . . Regen/Repaired (Parts) 85 | . 74 . 11 . . . Core Remaining (%) 47 | 100 . 2 . 19 69 . Volleys Fired 344 | 8 77 9 62 71 71 46 Largest 3 | 2 2 2 2 2 2 3 Hottest 181 | 80 136 136 136 136 136 181 Shots Fired 674 | 16 134 18 125 127 128 126 Gun 183 | 16 128 . . 1 38 . Cannon 478 | . 6 18 125 125 90 114 Launcher 12 | . . . . . . 12 Special 1 | . . . . 1 . . Kinetic 170 | . 31 . . . 83 56 Thermal 434 | 8 82 18 125 127 45 29 Explosive 12 | . . . . . . 12 Electromagnetic 58 | 8 21 . . . . 29 Robot Hit Streak 12 | 2 10 11 7 10 10 12 Robot Miss Streak 8 | 2 3 1 5 4 8 4 Penetration Max 1 | . . . . . 1 . Secondary Targets 2 | . 2 . . . . . Max Gunslinging Chain 1 | . 1 . . . . . Shots Hit Robots 347 | 7 78 13 57 63 71 58 Core Hits 196 | 6 39 5 25 33 31 57 Critical Kills 1 | . . . 1 . . . Critical Parts Destroyed . | . . . . . . . Critical Strikes 4 | . 2 . 1 . . 1 Burn 1 | . 1 . . . . . Meltdown 1 | . . . 1 . . . Corrupt 2 | . 1 . . . . 1 Melee Attacks . | . . . . . . . Impact . | . . . . . . . Slashing . | . . . . . . . Piercing . | . . . . . . . Sneak Attacks . | . . . . . . . Combat Hostiles . | . . . . . . . Follow-up Attacks . | . . . . . . . Damage Inflicted 9049 | 99 1159 263 1369 1415 1819 2925 Guns 1644 | 99 932 . . . 613 . Cannons 5914 | . 101 263 1369 1406 1176 1599 Explosions 1393 | . 124 . . . . 1269 Melee . | . . . . . . . Ramming 98 | . 2 . . 9 30 57 Kinetic 2358 | . 227 . . . 1236 895 Thermal 4668 | 34 736 263 1369 1406 553 307 Explosive 1269 | . . . . . . 1269 Electromagnetic 656 | 65 194 . . . . 397 Impact . | . . . . . . . Slashing . | . . . . . . . Piercing . | . . . . . . . Highest Corruption 12 | . . . 3 3 . 12 Average Corruption 3 | . . . 2 3 . 6 Corruption Purged . | . . . . . . . Corruption Blocked . | . . . . . . . Effects 72 | . . . 26 24 . 22 Message Errors 20 | . . . 7 8 . 5 Matter Fused 17 | . . . 5 6 . 6 Heat Flow Errors 7 | . . . 3 1 . 3 Energy Discharges 5 | . . . 2 2 . 1 Parts Rejected 1 | . . . . 1 . . Parts Fused 1 | . . . . 1 . . Data Loss (minor) 10 | . . . 5 2 . 3 Data Loss (major) 1 | . . . . . . 1 Misfires 5 | . . . 2 2 . 1 Alerts 3 | . . . 1 . . 2 Weapon Failures 2 | . . . 1 1 . . Overload Shots . | . . . . . . . Overflow Damage 114 | . . 1 14 2 7 90 Projectiles 63 | . . 1 14 2 7 39 Explosions 51 | . . . . . . 51 Melee . | . . . . . . . Knockbacks 11 | . . . . . 5 6 Impact 1 | . . . . . . 1 Kinetic 10 | . . . . . 5 5 Secondary . | . . . . . . . Self-Inflicted Damage 65 | . . . . . . 65 Shots 2 | . . . . . . 2 Rammed 20 | . 1 . . 1 7 11 Targets Rammed 20 | . 1 . . 1 7 11 Kicked . | . . . . . . . Crushed . | . . . . . . . Highest Temperature 591 | 36 279 270 591 244 369 531 Average Temperature 126 | 12 61 107 156 72 126 171 Received Heat Transfer 2736 | . 576 27 276 462 639 756 Effects 49 | . . . 20 3 7 19 Shutdowns 10 | . . . 3 . 2 5 Energy Bleed 11 | . . . 3 . 1 7 Interference 17 | . . . 7 3 3 4 Matter Decay 1 | . . . . . . 1 Short Circuit 4 | . . . 2 . . 2 Damage (minor) 2 | . . . 1 . 1 . Damage (major) 2 | . . . 2 . . . Damage (core) 2 | . . . 2 . . . Siege Activations . | . . . . . . . Robots Corrupted . | . . . . . . . Combat Hostiles . | . . . . . . . Parts Fried 1 | . . . . . . 1 Impact Corruptions . | . . . . . . . Robots Melted 2 | . . . 1 . 1 . Combat Hostiles 2 | . . . 1 . 1 . Parts Melted 11 | . 1 1 3 3 2 1 Heat Transferred 8551 | 75 1594 481 2479 2553 999 370 Parts Sabotaged . | . . . . . . . Parts Stolen . | . . . . . . . Parts Stripped . | . . . . . . . Power Chain Reactions 2 | . 2 . . . . . Alert | -11 -10 -10 -9 -9 -8 -7 ------- Run | Yrd Mat Min Mat Sto Mat Fac Peak Influence 624 | 25 199 161 342 624 451 434 Initial 235 | . 16 13 . 108 235 168 Average 194 | 11 87 37 193 402 267 153 Maximum Alert Level 2 | . . . 1 2 2 2 Low Security (%) 55 | 100 100 100 45 8 8 74 Level 1 33 | . . . 54 31 86 25 Level 2 11 | . . . . 59 4 . Level 3 . | . . . . . . . Level 4 . | . . . . . . . Level 5 . | . . . . . . . High Security . | . . . . . . . Max Security . | . . . . . . . Squads Dispatched 22 | . 4 . 2 2 5 9 Investigation 7 | . 3 . 2 . 2 . Extermination 6 | . . . . . . 6 Reinforcement 8 | . 1 . . 1 3 3 Assault . | . . . . . . . Garrison 1 | . . . . 1 . . Intercept . | . . . . . . . Searches Triggered . | . . . . . . . Construction Impeded 4 | . . . . . 2 2 Haulers Reinforced 1 | . . . . . . 1 Active Scanning Responses . | . . . . . . . Cargo Convoy Interrupts . | . . . . . . . Stealth | -11 -10 -10 -9 -9 -8 -7 --------- Run | Yrd Mat Min Mat Sto Mat Fac Distress Signals 7 | . . . 4 . 1 2 Communications Jammed . | . . . . . . . Distress Signals . | . . . . . . . Times Spotted 142 | . 18 5 29 30 26 34 Peak Tracking Total 6 | . 3 3 5 6 3 6 Tactical Retreats 10 | . . . 1 3 3 3 Traps | -11 -10 -10 -9 -9 -8 -7 ------- Run | Yrd Mat Min Mat Sto Mat Fac Traps Triggered 12 | . 4 . 4 . 4 . Indirectly . | . . . . . . . Trap Hack Attempts . | . . . . . . . Triggered . | . . . . . . . Disarmed . | . . . . . . . Reprogrammed . | . . . . . . . Reused . | . . . . . . . Traps Extracted . | . . . . . . . Installed . | . . . . . . . Triggered . | . . . . . . . Machines | -11 -10 -10 -9 -9 -8 -7 ---------- Run | Yrd Mat Min Mat Sto Mat Fac Machines Disabled 12 | . 1 . 1 4 3 3 Max in Single Turn 1 | . 1 . 1 1 1 1 Machines Repaired . | . . . . . . . Machines Dismantled . | . . . . . . . Machines Sabotaged . | . . . . . . . Overloaded Fab Kills . | . . . . . . . Hacking | -11 -10 -10 -9 -9 -8 -7 --------- Run | Yrd Mat Min Mat Sto Mat Fac Machines Accessed 12 | . 1 . 1 5 3 2 Terminals 9 | . . . . 5 3 1 Fabricators . | . . . . . . . Repair Stations 2 | . 1 . 1 . . . Recycling Units 1 | . . . . . . 1 Scanalyzers . | . . . . . . . Garrison Access . | . . . . . . . Total Hacks 43 | . 10 . 5 13 11 4 Successful 29 | . 5 . 4 9 8 3 Failed 13 | . 5 . 1 4 2 1 Catastrophic . | . . . . . . . Database Lockouts 1 | . . . . . 1 . Manual 2 | . . . . 2 . . Terminals 25 | . . . . 13 11 1 Fabricators . | . . . . . . . Repair Stations 15 | . 10 . 5 . . . Recycling Units 3 | . . . . . . 3 Scanalyzers . | . . . . . . . Garrison Access . | . . . . . . . Terminal Hacks 18 | . . . . 9 8 1 Record 13 | . . . . 7 6 . Open Door 1 | . . . . 1 . . Open DSF 1 | . . . . . . 1 Emergency Access Points 1 | . . . . . 1 . Alert Level 2 | . . . . 1 1 . Fabricator Hacks . | . . . . . . . Repair Station Hacks 9 | . 5 . 4 . . . Scan Component 6 | . 4 . 2 . . . Repair 3 | . 1 . 2 . . . Recycling Unit Hacks 2 | . . . . . . 2 Recycle Component 1 | . . . . . . 1 Process 1 | . . . . . . 1 Scanalyzer . | . . . . . . . Garrison Access Hacks . | . . . . . . . Unauthorized Hacks . | . . . . . . . Terminals . | . . . . . . . Fabricators . | . . . . . . . Repair Stations . | . . . . . . . Recycling Units . | . . . . . . . Scanalyzers . | . . . . . . . Garrison Access . | . . . . . . . Data Cores Recovered 1 | . . . 1 . . . Used . | . . . . . . . Hacking Detections 9 | . 1 . 1 4 2 1 Full Trace Events 4 | . 1 . 1 1 1 . Feedback Events . | . . . . . . . Feedback Blocked . | . . . . . . . Robot Schematics Acquired . | . . . . . . . Robots Built . | . . . . . . . Authchips . | . . . . . . . Time . | . . . . . . . Total Robot Build Rating . | . . . . . . . Part Schematics Acquired . | . . . . . . . Parts Built . | . . . . . . . Authchips . | . . . . . . . Time . | . . . . . . . Total Part Build Rating . | . . . . . . . Parts Repaired 3 | . 1 . 2 . . . Time 143 | . 26 . 117 . . . Parts Recycled 1 | . . . . . . 1 Recycled Matter 145 | . . . . . . 145 Retrieved Matter . | . . . . . . . Retrieved Components . | . . . . . . . Parts Scanalyzed . | . . . . . . . Part Schematics Acquired . | . . . . . . . Parts Damaged . | . . . . . . . Bothacking | -11 -10 -10 -9 -9 -8 -7 ------------ Run | Yrd Mat Min Mat Sto Mat Fac Used RIF Installer . | . . . . . . . Robots Hacked . | . . . . . . . Non-combat . | . . . . . . . Combat . | . . . . . . . Robot Hacks Applied . | . . . . . . . Relay Couplers Released 3 | . . . . . . 3 Programmers 3 | . . . . . . 3 Fabnet Peak Effective % . | . . . . . . . Robots Rewired . | . . . . . . . Allies Hacked . | . . . . . . . Hacks Repelled . | . . . . . . . Allies | -11 -10 -10 -9 -9 -8 -7 -------- Run | Yrd Mat Min Mat Sto Mat Fac Total Allies 12 | . . 2 . 10 . . Largest Group 10 | . . 2 2 10 8 . Highest-Rated Group 88 | . . 36 36 88 72 . Highest-Rated Ally 31 | . . 31 31 16 16 . Total Orders 3 | . . . . . 3 . GUARD 3 | . . . . . 3 . Ally Attacks 69 | . . 3 17 . 49 . Total Damage 693 | . . . 272 . 421 . Kills 13 | . . . 7 . 6 . Allies Corrupted 1 | . . . 1 . . . Allies Melted . | . . . . . . . Intel | -11 -10 -10 -9 -9 -8 -7 ------- Run | Yrd Mat Min Mat Sto Mat Fac Robot Analysis Total . | . . . . . . . Derelict Logs Recovered 3 | . . 3 . . . . Drone Launches . | . . . . . . . Drone Recoveries . | . . . . . . . Exploration | -11 -10 -10 -9 -9 -8 -7 ------------- Run | Yrd Mat Min Mat Sto Mat Fac Turns Passed 8816 | 199 1115 1036 1663 1510 1269 2024 Spaces Moved 4558 | 101 757 622 810 761 607 900 Core 33 | 6 . . . . . 27 Treads 3987 | 94 241 622 810 761 607 852 Legs . | . . . . . . . Wheels 517 | 1 516 . . . . . Hover 21 | . . . . . . 21 Flight . | . . . . . . . Fastest Speed 50 | 50 85 160 160 166 160 120 Average Speed 162 | 152 112 160 167 166 163 196 Slowest Speed 450 | 160 160 160 170 170 166 450 Overloaded Moves . | . . . . . . . Propulsion Burnouts . | . . . . . . . Robots Hopped . | . . . . . . . Cave-ins Triggered . | . . . . . . . Exploration Rate (%) 60 | 6 87 99 69 89 53 23 Regions Visited 6 Branch Regions 2 Pre-discovered Areas 2 | . . 2 . . . . Known Exits Taken 1 | . . . 1 . . . Unknown Exits Taken 5 | 1 1 1 . 1 1 . Scrap Searched 1 | . . 1 . . . . Spaces Dug 31 | . . . . . . 31 Terrain Destroyed 92 | . 7 . . . 8 77 Melee . | . . . . . . . Projectile 17 | . . . . . 8 9 AOE 75 | . 7 . . . . 68 Terrain Rammed . | . . . . . . . Walls Destroyed . | . . . . . . . Machines Disabled . | . . . . . . . Actions | -11 -10 -10 -9 -9 -8 -7 --------- Run | Yrd Mat Min Mat Sto Mat Fac Total 5317 | 128 890 647 989 873 749 1041 Wait 91 | . 1 . 73 4 13 . Move 4552 | 100 756 621 809 760 606 900 Hop . | . . . . . . . Pick Up 112 | 11 20 5 17 13 18 28 Fast Attach 6 | . 5 1 . . . . Attach 66 | 6 13 . 5 6 17 19 Detach 3 | . . . . . 2 1 Swap 63 | 3 5 3 12 10 10 20 Drop 60 | . 12 8 11 8 5 16 Fire 344 | 8 77 9 62 71 71 46 Melee . | . . . . . . . Ram 1 | . . . . . . 1 Kick . | . . . . . . . Crush 19 | . 1 . . 1 7 10 Escape Stasis . | . . . . . . . Rewire . | . . . . . . . Trap . | . . . . . . . Miscellaneous . | . . . . . . . Route ------- -11/Scrapyard -10/Materials (discovered 6 exits: *Mat x3 / [*Min x2] / [*Sub]) -10/Mines (discovered 3 exits: *Mat x2 / [*Exi]) -9/Materials (discovered 6 exits: *Mat x3 / [*Min] / *Sto x2) -9/Storage -8/Materials (discovered 2 exits: *Fac x2) -7/Factory (discovered 2 exits: [*Fac] / [*Low]) History --------- Turn | Location | Event 14 | -11/Scrapyard | Discovered new exit (range 16) 200 | -11/Scrapyard | Entered Materials 312 | -10/Materials | Build established: Mutant 413 | -10/Materials | Discovered new exit (range 7) 627 | -10/Materials | Core integrity fell below 50% 714 | -10/Materials | Lost 4 parts (2n1u1w) 727 | -10/Materials | Discovered new exit (range 3) 767 | -10/Materials | Discovered new exit (range 5) 769 | -10/Materials | Core integrity fell below 20% 843 | -10/Materials | Discovered new exit (range 10) 862 | -10/Materials | Repaired Assault Rifle? 980 | -10/Materials | Discovered new exit (range 16) 1180 | -10/Materials | Discovered new exit (range 7) 1315 | -10/Materials | Entered Mines 1316 | -10/Mines | Learned location of Storage (-9) 1344 | -10/Mines | Met a Derelict bent on vengeance 1360 | -10/Mines | Assembled infested the area 1644 | -10/Mines | Discovered new exit (range 5) 1814 | -10/Mines | Learned Materials terminal intel 1957 | -10/Mines | Found a damaged Exp. Sensor Array with a note attached 1960 | -10/Mines | Found Prototype Device 1961 | -10/Mines | Identified Exp. Sensor Array 2010 | -10/Mines | Discovered new exit (range 5) 2069 | -10/Mines | Discovered new exit (range 13) 2351 | -10/Mines | Entered Materials 2351 | -9/Materials | Accompanied by 2 allies 2351 | -9/Materials | Evolved 2 slots: Propulsion x1, Utility x1 2352 | -9/Materials | Identified exit to Storage 2353 | -9/Materials | Loaded intel: 12 terminal locations 2356 | -9/Materials | Led the pair of lost Derelicts to an unsafe place 2870 | -9/Materials | Discovered new exit (range 15) 3098 | -9/Materials | Discovered new exit (range 10) 3197 | -9/Materials | Repaired Broken Adv. Beam Cannon 3250 | -9/Materials | Repaired Broken Arm. Treads 3392 | -9/Materials | Discovered new exit (range 11) 3848 | -9/Materials | Discovered new exit (range 10) 3848 | -9/Materials | Discovered exit to Storage (range 16) 4014 | -9/Materials | Entered Storage 4149 | -9/Storage | Garrison activated, responded to threat 4366 | -9/Storage | Discovered new exit (range 15) 4520 | -9/Storage | Core integrity fell below 50% 4995 | -9/Storage | Build established: Scavenger-Mutant 5148 | -9/Storage | Core integrity fell below 20% 5371 | -9/Storage | Build established: Mutant 5405 | -9/Storage | Assisted by bots powering up and referring to "LRC-V3" 5524 | -9/Storage | Entered Materials 5524 | -8/Materials | Accompanied by 8 allies 5524 | -8/Materials | Evolved 2 slots: Power x1, Utility x1 5703 | -8/Materials | Build established: Commander-Mutant 5784 | -8/Materials | Lost 3 allies 5975 | -8/Materials | Discovered new exit (range 3) 6241 | -8/Materials | Build established: Scavenger-Mutant 6326 | -8/Materials | Central database locked down 6532 | -8/Materials | Lost 6 parts (2p2n2u) 6749 | -8/Materials | Discovered new exit (range 12) 6793 | -8/Materials | Entered Factory 6793 | -7/Factory | Evolved 2 slots: Utility x1, Weapon x1 7167 | -7/Factory | Build established: Scavenger-Tank 7341 | -7/Factory | Discovered new exit (range 6) 7810 | -7/Factory | Build established: Scavenger-Gunner 8336 | -7/Factory | Discovered new exit (range 6) 8663 | -7/Factory | System corruption reached 10% 8704 | -7/Factory | Lost 8 parts (2p3n1u2w) 8746 | -7/Factory | Core integrity fell below 50% 8803 | -7/Factory | Core integrity fell below 20% 8817 | -7/Factory | Destroyed by G-47 Trooper with Particle Gun Last Messages --------------- K-01 Serf collects debris. U-05 Engineer lays Concrete. U-05 Engineer builds a Wall. U-05 Engineer lays Concrete. Mni. Grenade Launcher destroyed. U-05 Engineer builds a Wall. System corrupted: Energy discharge (-57). U-05 Engineer lays Concrete. U-05 Engineer builds a Wall. U-05 Engineer lays Concrete. R-06 Scavenger collects Lgt. Nuclear Core. U-05 Engineer builds a Wall. U-05 Engineer lays Concrete. Slammed into U-05 Engineer. Destabilizing: System interference. Adv. Targeting Computer temporarily disabled. Hvy. Ion Cannon temporarily disabled. U-05 Engineer lays Concrete. Mic. Nuclear Core destroyed. [Achievement: 5k Club] Map ----- +----------------------------------------------------+ | ?????????????????????????????????????????????????? | | ?????????????????????????????????????????????????? | | ?????????????????????????????????????????????????? | | ?????????????????????????????????????????????????? | | ?????????????????????????????????????????????????? | | ?????????????????????????????????????????????????? | | ?????????????????????????????????????????????????? | | ?????????????????????????????????????????????????? | | ?????????????????????????????????????????????????? | | ?????????????????????????????????????????????????? | | ????????????????????????? ?????????????????????? | | ????????????????????????? #???????????????###### | | ????????????????????????? #??????????????? | | ????????????????????????? #?????????????? | | ???????????????????????"" #?????????????? | | ???????????????????????"" #?????????????? | | ???????????????????????"" #?????????????? | | ??????????????????????? ?????????????#? ### | | ????????????????????#### ##?##???????? # ?????? | | ????????????????????# ## #????????%# ??? | | ????????????????????# # #########+# +?? | | ????????????????????# u u# ## """ # #?? | | ????????????????????# ug### # "Y" # #?? | | ????????????????????# ] gu[ # # " " # #?? | | ????????????????????# ] ]r # * ## % # #?? | | ????????????????????# ]] @ #!##### # #?? | | ????????????????????# m# / # #?? | | ????????????????????# #% # /% #?? | | ????????????????????# # # # #?? | | ????????????????????# ! # =# # #?# | | ????????????????????# # #* # #?? | | ????????????????????# ! # % #% % # ### | | ????????????????????####g### %=######### ## | | ????????????????? k %! | | ????????????????? % % | | ????????????????? * | | ????????????????? | | ?????????????????? | | ??????????????????#############+#####+######+##### | | ????????????????????????## ?? # = | | ?????????????????????????# """ """ # = """ """ | | ?????????????????????????# """ """ # """ """ | | ?????????????????????????????"" """ # """ """ | | ????????????????????????????? ? # "" "" | | ??????????????????????????????" ?"" # "" "" | | ??????????????????????????????" ?"" # | | ??????????????????????????????" ??" # !!! | | ?????????????????????????????? ??? # !! | | ???????????????????????????????????? # !! | | ??????????????????????????????????????# | +----------------------------------------------------+ Best States ------------- Heat Dissipation 48 Energy Generation 25 Energy Capacity 435 Matter Stores 300 Matter Capacity 300 Sight Range 16 Robot Scan Range 20 Terrain Scan Density 10 Armor Coverage 900 Evasion (%) 42 Targeting Accuracy 16 Recoil Reduction 3 Item Schematics ----------------- None Robot Schematics ------------------ None Fabricated ------------ Nothing Alien Tech Used ----------------- None Achievements -------------- 5k Club Backstab Close Call Hey, That's Mine! It's Just You Let's See Who's Tougher Librarian Made in Tau Ceti IV Novice Programmer One Hack Too Far Please Form A Line The More The Merrier Troublemaker Challenges ------------ None Game ------ Seed GatlingRiotReconfigurator Manual? 0 Play Time 01:20:12 Cumulative 2.6 hours Start 2024.11.30 @ 20:44:01 End 2024.12.01 @ 16:36:51 Sessions 3 Manual Loads 0 Difficulty Rogue Special Mode None Game No. 4 Rogue 4 Adventurer 0 Explorer 0 Win Type - Total 0 Types 0/0/0/0/0/0/0/0/0 Lore% 1 Gallery% 7 Achievement% 9 Wizard Run 0 Options --------- Layout 1 ASCII 0 Keyboard 0 Movement Mouse Keybinds 0 Fullscreen 2 Font 32/Tamsyn Map View 50x35 Zoom Use 0% Tactical HUD 0 Map Filters NONE Filters NONE Steam 1 RUN: 8f82a106-152f-45ec-ae63-e76ed1c54f37